Cogmind - Beta 9.6 @@@ ROGUE MODE // 2020.08.05 @ 17:47:11 Player: Mordroc Result: Destroyed by D-53 Grenadier with Mini Grenade Launcher Performance ------------- Evolutions (0) 0 Regions Visited (2) 400 Robots Destroyed (19) 95 Value Destroyed (408) 408 Prototype IDs (0) 0 Alien Tech Used (0) 0 Bonus (0) 0 TOTAL SCORE: 903 Bonus ------- None Cogmind --------- Core Integrity 0/250 Matter 247/300 Energy 100/100 System Corruption 8% Temperature Cool (0) Movement Walking (120) Location -10/Mines Parts ------- > --- POWER (1) -------- (None) > --- PROPULSION (2) --- Aluminum Leg Aluminum Leg > --- UTILITY (2) ------ (None) > --- WEAPON (2) ------- Light Assault Rifle > --- INVENTORY (4) ---- (None) Peak State ------------ > --- POWER ------------ Light Ion Engine > --- PROPULSION ------- Aluminum Leg Aluminum Leg > --- UTILITY ---------- Heat Sink Terrain Scan Processor > --- WEAPON ----------- Assault Rifle Grenade Launcher > --- INVENTORY -------- Light Ion Engine Medium Laser [Rating: 8] Favorites ----------- Power Light Ion Engine Engine Light Ion Engine Propulsion Aluminum Leg Leg Aluminum Leg Utility Heat Sink Device Heat Sink Processor Terrain Scan Processor Weapon Assault Rifle Energy Gun Medium Laser Ballistic Gun Assault Rifle Launcher Grenade Launcher Special Melee Weapon Datajack Build | -11 -10 -10 ------- Run | Scr Mat Min Slots Evolved . | . . . Power . | . . . Propulsion . | . . . Utility . | . . . Weapon . | . . . Parts Attached 19 | 5 14 . Power 2 | 1 1 . Engine 2 | 1 1 . Core . | . . . Reactor . | . . . Propulsion 6 | 2 4 . Treads . | . . . Leg 6 | 2 4 . Wheel . | . . . Hover . | . . . Flight . | . . . Utility 4 | . 4 . Device 2 | . 2 . Storage . | . . . Processor 2 | . 2 . Hackware . | . . . Protection . | . . . Artifact . | . . . Weapon 7 | 2 5 . Energy Gun 3 | 1 2 . Energy Cannon . | . . . Ballistic Gun 2 | 1 1 . Ballistic Cannon . | . . . Launcher 1 | . 1 . Special Weapon . | . . . Impact Weapon . | . . . Slashing Weapon . | . . . Piercing Weapon . | . . . Special Melee Weapon 1 | . 1 . Unidentified Prototypes . | . . . Parts Lost 7 | . 4 3 Power . | . . . Propulsion 1 | . 1 . Utility 2 | . . 2 Weapon 4 | . 3 1 Highest Loss Streak 3 | . 2 3 Average Slot Usage (%) 91 | . 92 85 Engine 13 | . 14 11 Leg 27 | . 27 28 Device 11 | . 11 11 Processor 11 | . 11 8 Energy Gun 9 | . 9 11 Ballistic Gun 11 | . 10 14 Launcher 3 | . 3 . Special Melee Weapon 1 | . 1 . Naked Turns . | . . . Heaviest Build 10 | 7 10 8 Greatest Support 20 | 20 20 20 Greatest Overweight (x) . | . . . Average Overweight (x) . | . . . Largest Inventory Capacity 4 | 4 4 4 Average Capacity 4 | 4 4 4 Most Carried 4 | 2 4 . Average Carried 1 | . 1 . Final Capacity 4 | 4 4 4 Final Carried . | . . . Class Distribution -------------------- 51% | Mutant 48% | Scavenger-Mutant Dominant Class ---------------- Scavenger-Mutant | -10/Materials Scavenger-Mutant | -10/Mines Resources | -11 -10 -10 ----------- Run | Scr Mat Min Matter Collected 525 | 259 266 . Remotely . | . . . Salvage Created 522 | 42 480 . Parts 35 | 1 34 . Haulers Intercepted 1 | . 1 . Recyclers Shooed . | . . . Parts Field Recycled . | . . . Retrieved Matter . | . . . Parts Self-Destructed . | . . . Prevented . | . . . Kills | -11 -10 -10 ------- Run | Scr Mat Min Combat Hostiles Destroyed 12 | 1 11 . Guns 7 | 1 6 . AOE 5 | . 5 . Classes Destroyed 7 | 1 6 . Builder 2 | . 2 . Hauler 1 | . 1 . Recycler 1 | . 1 . Mechanic 1 | . 1 . Watcher 2 | . 2 . Swarmer 4 | . 4 . Grunt 8 | 1 7 . Best Kill Streak 6 | 1 6 . Combat Bots Only 4 | 1 4 . Max Kills in Single Turn 2 | 1 2 . Gunslinging . | . . . Exploded 1 | . 1 . Melee . | . . . Uniques/NPCs Destroyed . | . . . Combat | -11 -10 -10 -------- Run | Scr Mat Min Damage Taken 885 | 57 607 221 Core 269 | 12 174 83 Absorbed by Shields . | . . . Core Remaining (%) 95 | 95 . . Volleys Fired 51 | 3 43 5 Largest 2 | 2 2 2 Hottest 70 | 70 70 60 Shots Fired 80 | 5 67 8 Gun 69 | 5 56 8 Cannon . | . . . Launcher 11 | . 11 . Special . | . . . Kinetic 41 | 3 33 5 Thermal 28 | 2 23 3 Explosive 11 | . 11 . Electromagnetic . | . . . Robot Hit Streak 16 | 4 15 16 Robot Miss Streak 2 | . 2 2 Penetration Max . | . . . Secondary Targets . | . . . Shots Hit Robots 50 | 4 43 3 Core Hits 30 | 2 27 1 Critical Hits . | . . . Critical Kills . | . . . Critical Parts Destroyed . | . . . Melee Attacks 4 | . 4 . Impact . | . . . Slashing . | . . . Piercing . | . . . Sneak Attacks . | . . . Combat Hostiles . | . . . Follow-up Attacks . | . . . Damage Inflicted 1162 | 46 1089 27 Guns 529 | 46 456 27 Cannons . | . . . Explosions 633 | . 633 . Melee . | . . . Ramming . | . . . Kinetic 292 | 22 254 16 Thermal 357 | 24 322 11 Explosive 513 | . 513 . Electromagnetic . | . . . Impact . | . . . Slashing . | . . . Piercing . | . . . Highest Corruption 8 | . . 8 Average Corruption 7 | . . 7 Corruption Purged . | . . . Effects 1 | . . 1 Parts Rejected 1 | . . 1 Overload Shots . | . . . Overflow Damage 56 | . 56 . Projectiles . | . . . Explosions 56 | . 56 . Melee . | . . . Knockbacks . | . . . Impact . | . . . Kinetic . | . . . Secondary . | . . . Self-Inflicted Damage 121 | . 121 . Shots 5 | . 5 . Rammed . | . . . Targets Rammed . | . . . Kicked . | . . . Crushed . | . . . Highest Temperature 30 | 30 12 30 Average Temperature 10 | 19 4 18 Received Heat Transfer 270 | 30 240 . Siege Activations . | . . . Robots Corrupted . | . . . Combat Hostiles . | . . . Parts Fried . | . . . Impact Corruptions . | . . . Robots Melted . | . . . Combat Hostiles . | . . . Parts Melted . | . . . Heat Transferred 720 | 74 621 25 Parts Sabotaged . | . . . Parts Stolen . | . . . Parts Stripped . | . . . Power Chain Reactions . | . . . Missiles Intercepted . | . . . Alert | -11 -10 -10 ------- Run | Scr Mat Min Peak Influence 289 | 20 289 54 Average Influence 149 | 2 183 47 Maximum Alert Level 1 | . 1 . Low Security (%) 63 | 100 54 100 Level 1 36 | . 45 . Level 2 . | . . . Level 3 . | . . . Level 4 . | . . . Level 5 . | . . . High Security . | . . . Max Security . | . . . Squads Dispatched 3 | . 3 . Investigation 2 | . 2 . Extermination . | . . . Reinforcement 1 | . 1 . Assault . | . . . Garrison . | . . . Intercept . | . . . Construction Impeded . | . . . Haulers Reinforced . | . . . Stealth | -11 -10 -10 --------- Run | Scr Mat Min Distress Signals 2 | . 2 . Communications Jammed . | . . . Distress Signals . | . . . Times Spotted 28 | 1 21 6 Peak Tracking Total 5 | 1 5 5 Tactical Retreats 2 | . 2 . Traps | -11 -10 -10 ------- Run | Scr Mat Min Traps Triggered 2 | . 2 . Indirectly . | . . . Trap Hack Attempts . | . . . Triggered . | . . . Disarmed . | . . . Reprogrammed . | . . . Reused . | . . . Traps Extracted . | . . . Installed . | . . . Triggered . | . . . Machines | -11 -10 -10 ---------- Run | Scr Mat Min Machines Disabled 2 | . 2 . Max in Single Turn 1 | . 1 . Machines Sabotaged . | . . . Garrisons Compromised . | . . . Overloaded Fab Kills . | . . . Fab Network Shutdowns . | . . . Hacking | -11 -10 -10 --------- Run | Scr Mat Min Machines Accessed 3 | . 3 . Terminals 3 | . 3 . Fabricators . | . . . Repair Stations . | . . . Recycling Units . | . . . Scanalyzers . | . . . Garrison Access . | . . . Total Hacks 6 | . 6 . Successful 3 | . 3 . Failed 3 | . 3 . Catastrophic . | . . . Database Lockouts . | . . . Manual . | . . . Terminals 6 | . 6 . Fabricators . | . . . Repair Stations . | . . . Recycling Units . | . . . Scanalyzers . | . . . Garrison Access . | . . . Terminal Hacks 3 | . 3 . Locate Traps 1 | . 1 . Recall Investigation 1 | . 1 . Zone Layout 1 | . 1 . Fabricator Hacks . | . . . Repair Station Hacks . | . . . Recycling Unit Hacks . | . . . Scanalyzer . | . . . Garrison Access Hacks . | . . . Unauthorized Hacks . | . . . Terminals . | . . . Fabricators . | . . . Repair Stations . | . . . Recycling Units . | . . . Scanalyzers . | . . . Garrison Access . | . . . Data Cores Recovered . | . . . Used . | . . . Hacking Detections 3 | . 3 . Full Trace Events . | . . . Feedback Events . | . . . Feedback Blocked . | . . . Robot Schematics Acquired . | . . . Robots Built . | . . . Matter . | . . . Time . | . . . Total Robot Build Rating . | . . . Part Schematics Acquired . | . . . Parts Built . | . . . Matter . | . . . Time . | . . . Total Part Build Rating . | . . . Parts Repaired . | . . . Time . | . . . Parts Recycled . | . . . Recycled Matter . | . . . Retrieved Matter . | . . . Retrieved Components . | . . . Parts Scanalyzed . | . . . Part Schematics Acquired . | . . . Parts Damaged . | . . . Bothacking | -11 -10 -10 ------------ Run | Scr Mat Min Used RIF Installer . | . . . Robots Hacked 1 | . 1 . Non-combat . | . . . Combat 1 | . 1 . Robot Hacks Applied 2 | . 2 . parse_system 2 | . 2 . Relay Couplers Released . | . . . Robots Rewired . | . . . Allies Hacked . | . . . Hacks Repelled . | . . . Allies | -11 -10 -10 -------- Run | Scr Mat Min Total Allies . | . . . Largest Group . | . . . Highest-Rated Group . | . . . Highest-Rated Ally . | . . . Total Orders . | . . . Ally Attacks . | . . . Total Damage . | . . . Kills . | . . . Allies Corrupted . | . . . Allies Melted . | . . . Intel | -11 -10 -10 ------- Run | Scr Mat Min Robot Analysis Total . | . . . Derelict Logs Recovered 1 | . . 1 Drone Launches . | . . . Drone Recoveries . | . . . Exploration | -11 -10 -10 ------------- Run | Scr Mat Min Turns Passed 632 | 81 503 48 Spaces Moved 382 | 65 288 29 Core 23 | 23 . . Treads . | . . . Legs 359 | 42 288 29 Wheels . | . . . Hover . | . . . Flight . | . . . Fastest Speed 50 | 50 120 120 Average Speed 115 | 95 120 120 Slowest Speed 120 | 120 120 120 Overloaded Moves . | . . . Propulsion Burnouts . | . . . Robots Hopped . | . . . Cave-ins Triggered . | . . . Exploration Rate (%) 22 | 5 50 13 Regions Visited 2 Branch Regions 1 Pre-discovered Areas . | . . . Known Exits Taken . | . . . Unknown Exits Taken 2 | 1 1 . Scrap Searched . | . . . Spaces Dug . | . . . Terrain Destroyed 75 | . 75 . Melee . | . . . Projectile . | . . . AOE 75 | . 75 . Actions | -11 -10 -10 --------- Run | Scr Mat Min Total 494 | 79 380 35 Wait 7 | 2 4 1 Move 380 | 64 287 29 Hop . | . . . Pick Up 22 | 5 17 . Fast Attach . | . . . Attach 19 | 5 14 . Detach . | . . . Swap . | . . . Drop 11 | . 11 . Fire 51 | 3 43 5 Melee 4 | . 4 . Ram . | . . . Kick . | . . . Crush . | . . . Escape Stasis . | . . . Rewire . | . . . Trap . | . . . Miscellaneous . | . . . Route ------- -11/Scrapyard -10/Materials (discovered 3 exits: [*Mat] / [*Min x2]) -10/Mines History --------- Turn | Location | Event 2 | -11/Scrapyard | Met Revision 17 56 | -11/Scrapyard | Discovered new exit (range 8) 82 | -11/Scrapyard | Entered Materials 287 | -10/Materials | Core integrity fell below 50% 310 | -10/Materials | Build established: Mutant 408 | -10/Materials | Discovered new exit (range 14) 457 | -10/Materials | Discovered new exit (range 3) 549 | -10/Materials | Discovered new exit (range 8) 585 | -10/Materials | Entered Mines 589 | -10/Mines | Assembled infested the area 603 | -10/Mines | Learned 2 Materials zone layouts 614 | -10/Mines | Build established: Scavenger-Mutant 633 | -10/Mines | Destroyed by D-53 Grenadier with Mini Grenade Launcher Last Messages --------------- Acquired 14 matter. Acquired Lgt. Assault Rifle. Dropped Datajack. Triggered Alarm Trap. An alarm sounds. ALERT: Alarm triggered, dispatching investigation squad. LOCATION=UNKNOWN GOAL=ESCAPE ALERT: Infestation in the mines, dispatching Demolisher response squad. Acquired derelict log, extracted data. Data stored: Materials zone layouts (x2). Targeting Computer destroyed. System corrupted by crushing effect (+5). Heat Sink destroyed. System corrupted by crushing effect (+3). System corrupted: Ion Engine rejected. as-71163 destroyed. Sml. Laser destroyed. as-09201 destroyed. as-38505 destroyed. Map ----- +----------------------------------------------------+ | ?????????????????????????????????????????????????? | | ?????????????????????????????????????????????????? | | ?????????????????????????????????????????????????? | | ?????????????????????????????????????????????????? | | ?????????????????????????????????????????????????? | | ?????????????????????????????????????????????????? | | ?????????????????????????????????????????????????? | | ?????????????????????????????????????????????????? | | ?????????????????????????????????????????????????? | | ?????????????????????????????#???????????????????? | | ???????????????????????????? ????????????????????? | | ???????????????????????????? ?######?????????????? | | ???????????????????????????? ##????????????? | | ??????????????????????????## #????????????? | | ?????????????????????????? # ????????????? | | ???????????????????????##? % $?????????????? | | ??????????????????###### # #??????????????? | | ??????????????##??# # d ##?????????????? | | ?????????????## ?# #?????????????? | | ?????????????# # #?????????????? | | ??????????????? #??????????????? | | ????????????????? d ?????????????????? | | ??????????????????? #??????????????????? | | ????????????????????? #??????????????????? | | ??????????????????????# #???????????????????? | | ??????????????????????# @ ###??????????????????? | | ??????????????????????# #??????????????????? | | ??????????????????????## #??????????????????? | | ???????????????????????## ### ###????????????????? | | ????????????????????????# ### ##????###????????? | | ????????????????????????# ## ##??# ##???????? | | ???????????????????????## ### #???????? | | ???????????????????????# #???????? | | ???????????????????????# ##??????? | | ???????????????????????###### #??????? | | ????????????????????????????## #?????? | | ?????????????????????????????## ## ?? | | ??????????????????????????????## ##?? """ ???? | | ???????????????????????????????####????? ""?????? | | ????????????????????????????????????????? ""?????? | | ?????????????????????????????????????????????????? | | ?????????????????????????????????????????????????? | | ?????????????????????????????????????????????????? | | ?????????????????????????????????????????????????? | | ?????????????????????????????????????????????????? | | ?????????????????????????????????????????????????? | | ?????????????????????????????????????????????????? | | ?????????????????????????????????????????????????? | | ?????????????????????????????????????????????????? | | ?????????????????????????????????????????????????? | +----------------------------------------------------+ Best States ------------- Heat Dissipation 35 Energy Generation 10 Energy Capacity 250 Matter Stores 300 Matter Capacity 300 Sight Range 16 Terrain Scan Density 85 Evasion (%) 50 Targeting Accuracy 5 Item Schematics ----------------- None Robot Schematics ------------------ None Fabricated ------------ Nothing Alien Tech Used ----------------- None Achievements -------------- Crack Shot Loot Pinata Challenges ------------ None Game ------ Seed AntigravMachineAccelerator Manual? 0 Play Time 00:16:27 Cumulative 2.3 hours Start 2020.08.05 @ 17:31:29 End 2020.08.05 @ 17:47:11 Sessions 1 Manual Loads 0 Difficulty Rogue Special Mode None Game No. 12 Rogue 12 Adventurer 0 Explorer 0 Win Type - Total 0 Types 0/0/0/0/0/0/0 Lore% 2 Gallery% 5 Achievement% 3 Wizard Run 0 Options --------- ASCII 0 Keyboard 0 Movement Numpad Keybinds 0 Fullscreen 2 Font 18/SmallcapsGlow Map View 76x50 Tactical HUD 0 Map Filters NONE Filters NONE Steam 1 RUN: 9e3e4ead-301d-4403-bc75-81344c39516e